bitfinex/quotes_SOLUSD_20260213
["timestamp","ask_amount","ask_price","bid_price","bid_amount"]
[1771005747930,0.62717478,84.281,84.252,12.48556801]
[1771005748422,48.7,84.283,84.253,0.61641357]
[1771005748618,11.86492964,84.282,84.253,0.61641357]
[1771005748820,11.86444923,84.286,84.253,0.61641357]
[1771005749053,0.62717478,84.309,84.281,0.61641357]
[1771005749228,48.74,84.313,84.281,0.61641357]
[1771005749421,0.62717478,84.312,84.281,0.61641357]
[1771005749621,0.62717478,84.309,84.273,0.61641357]
[1771005750043,0.62717478,84.309,84.28,10.43975977]
[1771005750248,0.62717478,84.309,84.281,0.61641357]
[1771005750444,48.76,84.311,84.281,0.61641357]
[1771005750828,48.78,84.31,84.281,0.61641357]
[1771005751020,11.86112989,84.309,84.281,0.61641357]
[1771005751421,0.60657735,84.308,84.271,0.60223139]
[1771005751625,0.60657735,84.308,84.253,29.67248283]
[1771005751626,0.60657735,84.299,84.263,0.60223139]
[1771005751938,0.60657735,84.297,84.263,0.60223139]
[1771005752747,48.78,84.298,84.263,0.60223139]
[1771005752748,0.60657735,84.295,84.263,0.60223139]
[1771005753061,11.86295909,84.296,84.234,0.60223139]
[1771005753062,0.60657735,84.279,84.234,0.60223139]
[1771005753233,0.60657735,84.259,84.23,10.43975977]
[1771005753432,48.8,84.258,84.231,0.60223139]
[1771005753733,0.60657735,84.268,84.231,0.60223139]
[1771005753734,48.8,84.257,84.231,0.60223139]
[1771005753933,48.8,84.259,84.241,0.60223139]
[1771005754924,48.8,84.259,84.242,11.87056337]
[1771005755121,48.8,84.259,84.243,0.60223139]
[1771005755732,60.66825743,84.259,84.234,11.87160762]
[1771005755938,60.66825743,84.259,84.235,0.60223139]
[1771005756448,48.82,84.26,84.24,10.43975977]
[1771005756644,48.82,84.262,84.24,10.43975977]
[1771005756843,48.82,84.262,84.241,0.60223139]
[1771005757036,11.86771721,84.263,84.241,0.60223139]
[1771005757037,0.60657735,84.271,84.242,0.61694492]
[1771005757234,60.7066192,84.27,84.242,0.61694492]
[1771005757444,71.1573873,84.27,84.242,0.61694492]
[1771005758046,60.7066192,84.27,84.242,0.61694492]
[1771005758243,60.7066192,84.27,84.24,10.4507681]
[1771005758244,0.66340165,84.374,84.274,4.61729252]
[1771005758450,47.38223248,84.42,84.271,5.36086188]
[1771005758451,10.4507681,84.44,84.369,0.61694492]
[1771005758640,10.4507681,84.44,84.33,6.18964487]
[1771005758641,10.4507681,84.41,84.37,10.4507681]
[1771005758950,41.43041465,84.479,84.401,0.61694492]
[1771005759249,10.4507681,84.45,84.41,10.4507681]
[1771005759455,41.43041465,84.479,84.44,10.4507681]
[1771005759657,41.43041465,84.479,84.42,10.4507681]
[1771005759658,11.83445957,84.499,84.46,10.4507681]
[1771005759848,11.83445957,84.499,84.43,36.86]
[1771005759849,11.83025943,84.529,84.49,10.4507681]
[1771005760026,0.1,84.53,84.494,0.61694492]
[1771005760230,0.1,84.53,84.49,10.4507681]
[1771005760231,11.83025943,84.529,84.49,10.4507681]
[1771005760535,11.83025943,84.529,84.5,10.4507681]
[1771005760536,0.62794349,84.528,84.5,10.4507681]
[1771005760937,0.62794349,84.509,84.47,10.4507681]
[1771005761531,0.62794349,84.489,84.45,10.4507681]
[1771005761731,0.62794349,84.489,84.46,10.4507681]
[1771005761931,0.62794349,84.515,84.48,10.4507681]
[1771005762152,10.4507681,84.5,84.46,10.4507681]
[1771005762355,0.62794349,84.489,84.45,10.4507681]
[1771005763026,0.62794349,84.489,84.421,41.4588787]
[1771005763027,0.62794349,84.479,84.422,0.61694492]
[1771005763230,0.62794349,84.479,84.409,29.61769129]
[1771005763231,0.62794349,84.459,84.42,10.4507681]
[1771005763927,0.62794349,84.459,84.41,0.61694492]
[1771005764130,0.62794349,84.449,84.41,10.4507681]
[1771005764432,0.62794349,84.447,84.41,10.4507681]
[1771005764828,10.4507681,84.48,84.381,5.36086188]
[1771005764829,0.62794349,84.529,84.444,0.61694492]
[1771005765050,0.62794349,84.529,84.481,0.61694492]
[1771005765233,10.4507681,84.54,84.52,10.4507681]
[1771005765234,0.62794349,84.54,84.52,10.4507681]
[1771005765548,0.62794349,84.54,84.489,0.61694492]
[1771005765749,0.62794349,84.519,84.49,10.4507681]
[1771005766049,0.62794349,84.519,84.468,23.56]
[1771005766050,0.62794349,84.544,84.51,10.4507681]
[1771005766254,0.62794349,84.544,84.48,10.4507681]
[1771005766255,0.62794349,84.584,84.523,0.37415162]
[1771005766456,0.62794349,84.584,84.55,10.4507681]
[1771005766633,0.62794349,84.569,84.53,10.4507681]
[1771005766947,0.62794349,84.567,84.53,10.4507681]
[1771005767134,11.82397342,84.574,84.55,10.4507681]
[1771005767335,11.82397342,84.574,84.52,10.4507681]
[1771005767336,0.62794349,84.559,84.52,10.4507681]
[1771005767536,0.62794349,84.559,84.53,10.4507681]
[1771005767943,0.22,84.729,84.54,10.4507681]
[1771005767944,0.62794349,84.571,84.54,10.4507681]
[1771005768249,0.62794349,84.598,84.56,10.4507681]
[1771005768447,0.62794349,84.589,84.56,10.4507681]
[1771005769528,11.82200784,84.588,84.57,10.4507681]
[1771005769731,12.44995133,84.588,84.541,0.37856742]
[1771005769933,12.44995133,84.588,84.541,12.20707933]
[1771005770228,12.44995133,84.588,84.528,0.38000263]
[1771005770229,0.62794349,84.569,84.528,0.38000263]
[1771005770433,0.62794349,84.569,84.53,10.4507681]
[1771005770635,0.62794349,84.594,84.56,10.4507681]
[1771005770838,11.82130909,84.593,84.56,10.4507681]
[1771005771969,0.62794349,84.579,84.535,0.38281839]
[1771005772140,41.37458181,84.593,84.53,10.4507681]
[1771005772141,0.62794349,84.569,84.53,10.4507681]
[1771005772465,41.37458181,84.593,84.541,0.38281839]
[1771005772466,0.62794349,84.585,84.541,0.38281839]
[1771005772649,10.4507681,84.58,84.541,0.38281839]
[1771005773042,0.62794349,84.569,84.53,10.4507681]
[1771005773244,22.27389413,84.58,84.532,0.38419995]
[1771005773443,22.27389413,84.58,84.54,10.4507681]
[1771005773850,22.27389413,84.58,84.532,0.38419995]
[1771005774049,10.4507681,84.6,84.551,0.38557095]
[1771005774546,0.62794349,84.599,84.551,0.38557095]
[1771005774747,10.4507681,84.59,84.551,0.38557095]
[1771005774948,10.4507681,84.58,84.538,0.38692683]
[1771005775259,45.98502804,84.607,84.54,10.4507681]
[1771005775260,0.62794349,84.578,84.54,10.4507681]
[1771005775450,0.62794349,84.578,84.541,0.38692683]
[1771005776364,0.62794349,84.569,84.52,10.4507681]
[1771005776868,0.62794349,84.549,84.51,10.4507681]
[1771005777156,135.96755693,84.579,84.434,118.5041019]
[1771005777157,0.62794349,84.569,84.53,10.4507681]
[1771005777359,0.62794349,84.568,84.53,10.4507681]
[1771005778249,0.62794349,84.568,84.54,10.4507681]
[1771005780255,11.82390439,84.575,84.55,10.4507681]
[1771005780463,0.62794349,84.59,84.56,10.4507681]
[1771005781362,0.62794349,84.59,84.57,10.4507681]
[1771005781549,0.62794349,84.59,84.56,10.4507681]
[1771005782152,0.67534212,84.589,84.55,10.4507681]
[1771005782363,0.67534212,84.587,84.56,10.4507681]
[1771005782662,0.67534212,84.579,84.55,10.4507681]
[1771005782964,0.67534212,84.579,84.54,10.4507681]
[1771005783373,0.67534212,84.579,84.55,10.4507681]
[1771005784582,0.67534212,84.577,84.55,10.4507681]
[1771005784877,10.4507681,84.56,84.52,10.4507681]
[1771005785076,10.4507681,84.56,84.506,11.83341222]
[1771005785077,0.67534212,84.575,84.54,10.4507681]
[1771005785780,0.67534212,84.575,84.506,41.41711041]
[1771005785781,0.67534212,84.575,84.55,10.4507681]
[1771005786772,11.82396481,84.574,84.55,10.4507681]
[1771005786981,11.82396481,84.574,84.542,0.62848321]
[1771005787277,0.67534212,84.549,84.497,0.62848321]
[1771005787458,0.67534212,84.549,84.51,10.4507681]
[1771005787663,11.12611022,84.56,84.521,0.62848321]
[1771005787857,0.67534212,84.56,84.53,10.4507681]
[1771005788060,0.67534212,84.559,84.521,0.62848321]
[1771005788857,12.50154425,84.558,84.522,11.8312392]
[1771005789164,0.67534212,84.557,84.52,10.4507681]
[1771005789760,11.82505861,84.567,84.54,10.4507681]
[1771005789967,0.67534212,84.566,84.53,10.4507681]
[1771005791054,11.82336426,84.579,84.56,10.4507681]
[1771005791259,12.49707045,84.59,84.56,10.4507681]
[1771005791461,0.67534212,84.589,84.55,10.4507681]
[1771005792164,0.67534212,84.589,84.56,10.4507681]
[1771005793170,48.7,84.607,84.56,10.4507681]
[1771005793171,0.67534212,84.609,84.58,10.4507681]
[1771005793371,0.67534212,84.609,84.56,11.82587621]
[1771005793372,0.67534212,84.658,84.602,0.62848321]
[1771005793571,0.67534212,84.658,84.63,10.4507681]
[1771005793878,0.67534212,84.658,84.621,0.62848321]
[1771005793879,0.67534212,84.658,84.64,10.4507681]
[1771005794081,0.1,84.67,84.621,0.62848321]
[1771005794082,11.81090585,84.668,84.65,10.4507681]
[1771005794265,11.81090585,84.668,84.64,10.4507681]
[1771005795070,12.48624797,84.668,84.64,10.4507681]
[1771005795279,0.67534212,84.667,84.583,47.29082073]
[1771005795479,0.67534212,84.659,84.62,10.4507681]
[1771005795663,0.67534212,84.649,84.61,10.4507681]
[1771005796163,0.67534212,84.649,84.594,0.62848321]
[1771005796364,0.67534212,84.649,84.61,10.4507681]
[1771005796864,0.67534212,84.649,84.62,10.4507681]
[1771005797183,0.67534212,84.647,84.62,10.4507681]
[1771005797767,0.67534212,84.647,84.595,29.55257402]
[1771005797768,0.67534212,84.629,84.586,44.24]
[1771005797970,41.3476987,84.648,84.58,10.4507681]
[1771005797971,0.67534212,84.619,84.58,10.4507681]
[1771005798488,0.67534212,84.619,84.577,11.8235454]
[1771005798686,0.67534212,84.619,84.58,10.4507681]
[1771005799276,11.81781654,84.618,84.59,10.4507681]
[1771005799672,0.67534212,84.617,84.59,10.4507681]
[1771005799876,10.4507681,84.63,84.59,10.4507681]
[1771005799877,0.67534212,84.627,84.59,10.4507681]
[1771005800180,0.67534212,84.627,84.6,10.4507681]
[1771005800379,0.67534212,84.627,84.587,0.62848321]
[1771005800380,0.67534212,84.627,84.59,10.4507681]
[1771005801082,0.67534212,84.627,84.587,0.62848321]
[1771005801083,0.67534212,84.627,84.6,10.4507681]
[1771005801388,48.68,84.644,84.6,10.4507681]
[1771005801389,11.81097712,84.667,84.621,0.62848321]
[1771005801565,0.67534212,84.666,84.63,0.62848321]
[1771005801881,11.81069813,84.669,84.64,10.4507681]
[1771005802090,0.1,84.67,84.65,10.4507681]
[1771005802587,0.67534212,84.669,84.65,10.4507681]
[1771005803096,0.1,84.67,84.65,10.4507681]
[1771005803768,0.1,84.67,84.64,0.62848321]
[1771005803969,0.1,84.67,84.65,10.4507681]
[1771005805975,0.1,84.68,84.641,0.62848321]
[1771005805976,0.67534212,84.678,84.641,11.81448722]
[1771005806193,0.67534212,84.678,84.65,10.4507681]
[1771005807394,0.67534212,84.678,84.641,11.81448722]
[1771005807395,0.1,84.68,84.66,10.4507681]
[1771005807590,0.1,84.69,84.67,10.4507681]
[1771005807794,0.1,84.69,84.663,0.62848321]
[1771005807795,0.1,84.69,84.68,10.4507681]
[1771005808492,0.1,84.69,84.67,10.4507681]
[1771005808692,0.1,84.69,84.68,10.4507681]
[1771005808994,0.1,84.7,84.68,10.4507681]
[1771005809188,0.67534212,84.692,84.654,47.24]
[1771005809488,0.67534212,84.692,84.614,94.54624346]
[1771005809489,0.67534212,84.659,84.62,10.4507681]
[1771005809694,0.67534212,84.659,84.621,0.62848321]
[1771005809902,0.67534212,84.669,84.63,10.4507681]
[1771005810390,0.67534212,84.649,84.6,10.4507681]
[1771005810594,0.67534212,84.629,84.594,11.82110808]
[1771005811590,12.48340954,84.628,84.594,11.82110808]
[1771005813081,12.48340954,84.628,84.585,0.62848321]
[1771005813082,0.66698945,84.627,84.585,0.62848321]
[1771005813282,0.66698945,84.627,84.59,10.4507681]
[1771005813804,11.81669935,84.626,84.591,12.5108323]
[1771005814905,11.11775755,84.65,84.61,10.4507681]
[1771005815093,0.66698945,84.648,84.601,0.68924372]
[1771005815804,10.4507681,84.64,84.603,0.68924372]
[1771005816590,0.66698945,84.646,84.603,0.68924372]
[1771005816786,10.4507681,84.64,84.603,0.68924372]
[1771005817099,11.00469436,84.64,84.603,0.68924372]
[1771005817706,0.64381759,84.637,84.596,11.82088987]
[1771005819410,0.64381759,84.629,84.591,11.82158858]
[1771005819807,11.81642009,84.628,84.591,11.82158858]
[1771005819998,11.81642009,84.628,84.592,0.65354281]
[1771005820200,12.46023768,84.628,84.592,0.65354281]
[1771005821393,0.64381759,84.628,84.592,0.65354281]
[1771005821691,12.46023768,84.628,84.592,0.65354281]
[1771005821904,11.81376776,84.647,84.603,0.65354281]
[1771005822106,11.81376776,84.647,84.611,0.65354281]
[1771005822303,41.34818717,84.647,84.611,0.65354281]
[1771005822704,41.34818717,84.647,84.596,47.18]
[1771005822705,0.64381759,84.629,84.596,47.18]
[1771005823007,0.64381759,84.619,84.586,11.82220268]
[1771005824207,0.64381759,84.617,84.58,10.36087677]
[1771005824411,11.81695496,84.625,84.59,10.36087677]
[1771005824713,0.64381759,84.627,84.6,10.36087677]
[1771005824912,10.36087677,84.64,84.6,10.36087677]
[1771005824913,11.81555536,84.635,84.6,10.36087677]
[1771005825512,11.81555536,84.635,84.601,0.65354281]
[1771005826414,11.81555536,84.635,84.602,11.82005153]
[1771005826800,11.81555536,84.635,84.591,47.16]
[1771005826801,0.64381759,84.629,84.592,11.82144883]
[1771005827307,11.81555536,84.635,84.592,11.82144883]
[1771005827308,10.36087677,84.62,84.592,11.82144883]
[1771005827616,0.64381759,84.619,84.592,11.82144883]
[1771005827812,0.64381759,84.609,84.577,29.55879384]
[1771005828111,0.64381759,84.609,84.58,10.36087677]
[1771005828500,0.64381759,84.609,84.581,11.82298624]
[1771005828702,0.64381759,84.607,84.572,11.8241633]
[1771005829097,0.64381759,84.619,84.581,0.65354281]
[1771005829309,0.64381759,84.618,84.581,0.65354281]
[1771005829904,0.64381759,84.618,84.58,10.36087677]
[1771005830616,0.64381759,84.616,84.581,11.82298624]
[1771005831913,48.26,84.628,84.581,11.82298624]
[1771005831914,59.04945433,84.675,84.611,0.65354281]
[1771005832124,10.36087677,84.67,84.63,10.36087677]
[1771005832301,10.36087677,84.66,84.621,0.65354281]
[1771005832495,41.34232627,84.659,84.621,0.65354281]
[1771005832796,41.32719329,84.69,84.63,10.36087677]
[1771005833001,41.32719329,84.69,84.631,0.65354281]
[1771005833002,48.28,84.689,84.631,0.65354281]
[1771005833204,10.36087677,84.67,84.631,0.65354281]
[1771005833410,10.36087677,84.66,84.631,0.65354281]
[1771005833810,10.36087677,84.67,84.631,0.65354281]
[1771005833999,10.36087677,84.67,84.6,10.36087677]
[1771005834000,0.64381759,84.639,84.59,10.36087677]
[1771005834202,0.64381759,84.619,84.58,0.65354281]
[1771005834400,11.00469436,84.61,84.58,11.01441958]
[1771005834698,11.00469436,84.65,84.601,0.65354281]
[1771005834902,0.64381759,84.639,84.601,0.65354281]
[1771005836005,0.64381759,84.639,84.61,10.36087677]
[1771005836422,0.64381759,84.677,84.631,0.65354281]
[1771005836597,0.64381759,84.688,84.66,10.36087677]
[1771005836801,11.80784173,84.69,84.67,10.36087677]
[1771005837303,0.1,84.7,84.651,41.34623335]
[1771005837304,0.1,84.7,84.68,10.36087677]
[1771005838215,0.1,84.71,84.68,11.01441958]
[1771005838421,0.1,84.71,84.7,10.36087677]
[1771005839630,0.64381759,84.709,84.657,0.61218331]
[1771005839924,0.64381759,84.709,84.67,10.36087677]
[1771005840122,0.64381759,84.709,84.68,10.36087677]
[1771005840626,10.46087677,84.71,84.661,11.81181417]
[1771005840627,0.1,84.71,84.69,10.36087677]
[1771005840812,0.1,84.71,84.7,10.36087677]
[1771005842200,0.77784289,84.71,84.68,10.36087677]
[1771005842402,0.77784289,84.71,84.69,10.36087677]
[1771005842809,0.67784289,84.721,84.7,10.36087677]
[1771005843931,11.80358829,84.72,84.7,10.36087677]
[1771005844128,0.67784289,84.719,84.672,47.02]
[1771005844305,0.67784289,84.719,84.68,10.36087677]
[1771005844504,0.67784289,84.719,84.69,10.36087677]
[1771005844926,0.67784289,84.719,84.678,0.62467289]
[1771005844927,0.67784289,84.719,84.7,10.36087677]
[1771005846330,11.80386694,84.718,84.7,10.36087677]
[1771005847528,4.61729252,84.707,84.651,0.73260767]
[1771005847825,106.2348025,84.718,84.651,0.73260767]
[1771005847826,10.36087677,84.69,84.651,0.73260767]
[1771005848423,41.32768127,84.689,84.651,0.73260767]
[1771005848824,10.36087677,84.68,84.651,0.73260767]
[1771005849226,41.32768127,84.689,84.63,10.36087677]
[1771005849227,10.36087677,84.67,84.63,10.36087677]
[1771005849431,10.36087677,84.66,84.628,0.73260767]
[1771005849729,10.36087677,84.66,84.62,10.36087677]
[1771005849730,10.36087677,84.66,84.621,0.73260767]
[1771005849911,10.36087677,84.66,84.593,46.94]
[1771005849912,10.36087677,84.67,84.641,0.73260767]
[1771005850114,48.26,84.677,84.641,0.73260767]
[1771005850313,41.32768127,84.689,84.651,0.73260767]
[1771005850514,41.32768127,84.689,84.661,0.73260767]
[1771005851132,11.80790893,84.689,84.661,0.73260767]
[1771005851331,11.8071958,84.695,84.671,0.73260767]
[1771005851836,11.8071958,84.695,84.65,10.36087677]
[1771005851837,10.36087677,84.68,84.65,10.36087677]
[1771005852214,10.36087677,84.69,84.65,10.36087677]
[1771005852416,41.32768127,84.689,84.65,10.36087677]
[1771005852622,41.32768127,84.689,84.651,0.73260767]
[1771005853447,29.5086515,84.721,84.681,0.73260767]
[1771005853650,51.67343578,84.72,84.681,0.73260767]
[1771005853815,10.36087677,84.71,84.67,10.36087677]
[1771005854020,10.36087677,84.7,84.668,0.73260767]
[1771005854235,10.36087677,84.69,84.668,0.73260767]
[1771005854440,10.36087677,84.69,84.656,0.73260767]
[1771005854629,10.36087677,84.69,84.65,10.36087677]
[1771005854630,11.80790893,84.689,84.657,12.54497994]
[1771005854947,11.80790893,84.689,84.658,0.73260767]
[1771005855415,11.80790893,84.689,84.64,29.5366444]
[1771005855416,11.80790893,84.689,84.661,0.73260767]
[1771005856821,11.80679362,84.697,84.661,0.73260767]
[1771005857850,0.03840685,84.669,84.63,10.36087677]
[1771005858021,10.36087677,84.66,84.628,0.73260767]
[1771005858342,48.32,84.668,84.641,0.73260767]
[1771005858518,10.36087677,84.68,84.641,0.73260767]
[1771005858519,48.32,84.679,84.641,0.73260767]
[1771005858724,48.32,84.679,84.651,0.73260767]
[1771005859047,11.80944283,84.678,84.651,0.73260767]
[1771005859420,4.61729252,84.698,84.611,5.36086188]
[1771005859421,10.36087677,84.7,84.661,0.73260767]
[1771005859836,10.36087677,84.68,84.649,0.73260767]
[1771005860038,10.36087677,84.68,84.65,10.36087677]
[1771005860421,10.36087677,84.67,84.649,0.73260767]
[1771005860727,48.3,84.677,84.649,0.73260767]
[1771005860922,48.3,84.677,84.631,46.72]
[1771005860923,10.36087677,84.69,84.651,0.73260767]
[1771005862142,11.80721184,84.694,84.661,0.73260767]
[1771005862329,60.08721184,84.694,84.661,0.73260767]
[1771005862643,0.67784289,84.669,84.571,47.29725386]
[1771005862840,11.81196328,84.66,84.63,10.36087677]
[1771005863046,11.80944283,84.678,84.64,10.36087677]
[1771005863343,41.3330499,84.678,84.64,10.36087677]
[1771005864147,47.22717451,84.697,84.621,41.3608915]
[1771005864148,0.67784289,84.747,84.67,10.36087677]
[1771005864452,47.17506348,84.791,84.66,10.36087677]
[1771005864453,10.46087677,84.8,84.74,10.36087677]
[1771005864624,10.46087677,84.8,84.77,10.36087677]
[1771005864625,22.25342154,84.8,84.77,10.36087677]
[1771005864818,22.25342154,84.8,84.761,11.79787874]
[1771005864819,11.79273096,84.798,84.761,11.79787874]
[1771005865024,10.36087677,84.79,84.76,10.36087677]
[1771005865541,0.1,84.78,84.77,10.36087677]
[1771005865737,0.1,84.78,84.762,0.67690051]
[1771005866944,0.1,84.78,84.741,0.67690051]
[1771005866945,0.67784289,84.779,84.741,0.67690051]
[1771005867250,10.46087677,84.78,84.732,11.80191663]
[1771005867251,0.1,84.78,84.76,10.36087677]
[1771005868028,0.1,84.78,84.751,0.67690051]
[1771005868532,0.1,84.78,84.753,0.67690051]
[1771005868920,0.1,84.78,84.77,10.36087677]
[1771005869123,0.1,84.78,84.761,0.67690051]
[1771005870728,0.1,84.78,84.76,11.79797103]
[1771005870925,0.1,84.8,84.761,0.74414394]
[1771005871129,0.70008943,84.841,84.791,0.74414394]
[1771005871345,4.88567664,84.817,84.79,10.36087677]
[1771005871520,0.70008943,84.809,84.776,46.76]
[1771005871730,0.70008943,84.789,84.75,10.36087677]
[1771005871931,10.36087677,84.78,84.741,0.74414394]
[1771005872450,10.36087677,84.78,84.706,0.74414394]
[1771005872451,10.36087677,84.75,84.706,0.74414394]
[1771005872656,10.36087677,84.75,84.711,0.74414394]
[1771005872657,11.79954925,84.749,84.711,0.74414394]
[1771005872942,11.79954925,84.749,84.711,0.69414394]
[1771005873153,0.70008943,84.739,84.7,10.36087677]
[1771005873348,10.36087677,84.71,84.67,10.36087677]
[1771005873759,0.70008943,84.699,84.66,10.36087677]
[1771005873929,4.61729252,84.748,84.638,11.81502398]
[1771005873930,10.36087677,84.68,84.65,10.36087677]
[1771005874129,10.36087677,84.68,84.64,10.36087677]
[1771005874353,10.36087677,84.67,84.64,10.36087677]
[1771005874832,0.70008943,84.677,84.641,11.81460521]
[1771005875032,0.70008943,84.677,84.641,12.55874915]
[1771005875340,11.80804836,84.688,84.651,0.74414394]
[1771005875949,0.70008943,84.679,84.64,10.36087677]
[1771005876859,0.70008943,84.677,84.64,10.36087677]
[1771005877031,0.70008943,84.669,84.63,22.17695307]
[1771005877230,0.70008943,84.669,84.631,0.74845614]
[1771005877447,0.70008943,84.669,84.64,10.36087677]
[1771005878158,41.3330499,84.678,84.64,10.36087677]
[1771005878159,11.80944283,84.678,84.64,11.10933291]
[1771005878334,11.80944283,84.678,84.62,0.74845614]
[1771005878335,0.74933948,84.659,84.62,0.74845614]
[1771005878537,10.36087677,84.65,84.62,10.36087677]
[1771005878741,11.11021625,84.65,84.61,10.36087677]
[1771005879036,11.81348864,84.649,84.611,11.81879424]
[1771005879348,11.81348864,84.649,84.607,0.74845614]
[1771005879349,10.35804518,84.64,84.607,0.74845614]
[1771005879530,41.34721024,84.649,84.6,10.35804518]
[1771005879531,10.35804518,84.63,84.6,10.35804518]
[1771005879732,10.35804518,84.63,84.597,46.78]
[1771005879946,10.35804518,84.62,84.584,0.74845614]
[1771005880150,10.35804518,84.62,84.59,10.35804518]
[1771005880448,10.35804518,84.64,84.61,10.35804518]
[1771005880749,10.35804518,84.64,84.601,0.74845614]
[1771005881049,11.81488439,84.639,84.602,11.82005153]
[1771005881231,11.81488439,84.639,84.603,0.74845614]
[1771005882033,0.74933948,84.655,84.621,0.74845614]
[1771005882341,11.81306222,84.653,84.621,0.74845614]
[1771005882849,11.81306222,84.653,84.62,10.35804518]
[1771005882850,10.35804518,84.64,84.61,10.35804518]
[1771005883152,10.35804518,84.63,84.597,11.82073746]
[1771005883542,11.10738466,84.63,84.597,11.82073746]
[1771005883745,10.35804518,84.62,84.59,10.35804518]
[1771005883950,0.74933948,84.643,84.61,10.35804518]
[1771005884145,12.56129317,84.66,84.621,0.74845614]
[1771005884650,0.74933948,84.673,84.64,11.10650132]
[1771005884950,11.80907286,84.681,84.65,10.35804518]
[1771005885535,0.74933948,84.685,84.651,11.81320953]
[1771005885851,0.74933948,84.699,84.661,0.74845614]
[1771005886554,0.74933948,84.708,84.68,10.35804518]
[1771005886753,0.74933948,84.729,84.69,10.35804518]
[1771005887141,11.80247379,84.728,84.691,11.80763009]
[1771005887341,11.80247379,84.728,84.691,12.55608623]
[1771005887659,0.74933948,84.729,84.7,10.35804518]
[1771005887955,0.74933948,84.729,84.691,42.07516145]
[1771005887956,22.15752095,84.75,84.72,10.35804518]
[1771005888155,11.79947577,84.75,84.72,10.35804518]
[1771005888358,11.79760036,84.763,84.73,10.35804518]
[1771005888548,0.74933948,84.762,84.73,10.35804518]
[1771005888858,0.74933948,84.759,84.73,10.35804518]
[1771005889049,11.79687077,84.769,84.73,11.10650132]
[1771005889241,11.79687077,84.769,84.701,5.36086188]
[1771005889242,11.79687077,84.769,84.74,10.35804518]
[1771005889438,0.74933948,84.768,84.719,11.80362928]
[1771005889634,0.74933948,84.759,84.72,10.35804518]
[1771005889857,0.74933948,84.759,84.73,10.35804518]
[1771005890661,47.15965304,84.819,84.719,11.80362928]
[1771005890662,0.74933948,84.791,84.751,0.74845614]
[1771005890958,47.14368984,84.847,84.78,10.35804518]
[1771005890959,0.74933948,84.802,84.78,10.35804518]
[1771005891160,12.54157736,84.802,84.78,10.35804518]
[1771005891373,0.74933948,84.799,84.752,0.74845614]
[1771005891550,0.74933948,84.799,84.76,10.35804518]
[1771005892233,0.74933948,84.799,84.77,10.35804518]
[1771005893340,12.54207044,84.798,84.76,22.15592746]
[1771005893654,0.74933948,84.797,84.76,10.35804518]
[1771005894452,0.74933948,84.797,84.761,11.79787874]
[1771005894660,11.79273096,84.798,84.77,10.35804518]
[1771005894860,0.1,84.8,84.77,10.35804518]
[1771005895255,0.1,84.8,84.742,46.62]
[1771005895256,10.35804518,84.78,84.736,0.74845614]
[1771005895563,10.35804518,84.78,84.735,11.80149879]
[1771005895564,11.79488228,84.783,84.75,11.10650132]
[1771005895958,11.79350923,84.793,84.77,10.35804518]
[1771005896261,0.74933948,84.799,84.77,10.35804518]
[1771005896262,11.79276868,84.798,84.77,10.35804518]
[1771005896462,0.1,84.8,84.78,10.35804518]
[1771005896669,22.89849898,84.81,84.737,147.51525306]
[1771005896670,10.35804518,84.81,84.761,0.74845614]
[1771005896858,0.74933948,84.809,84.77,10.35804518]
[1771005897055,0.74933948,84.799,84.76,10.35804518]
[1771005897469,0.74933948,84.789,84.76,10.35804518]
[1771005897669,0.74933948,84.779,84.74,10.35804518]
[1771005898344,0.74933948,84.769,84.73,10.35804518]
[1771005898550,10.35804518,84.76,84.726,0.74845614]
[1771005898745,0.74933948,84.759,84.72,10.35804518]
[1771005898941,0.74933948,84.769,84.73,10.30804518]
[1771005899178,0.74933948,84.769,84.721,0.74845614]
[1771005899179,0.74933948,84.759,84.721,0.74845614]
[1771005899552,11.79829632,84.758,84.721,0.74845614]
[1771005899752,0.74933948,84.757,84.721,0.74845614]
[1771005900069,0.74933948,84.757,84.722,11.80330964]
[1771005900267,0.74933948,84.803,84.751,0.74845614]
[1771005900563,0.74933948,84.803,84.722,41.31158376]
[1771005900564,0.74933948,84.779,84.74,11.10650132]
[1771005900764,0.81857251,84.759,84.72,10.35804518]
[1771005900941,0.81857251,84.749,84.705,0.74794115]
[1771005901145,0.81857251,84.729,84.69,22.16567648]
[1771005901365,10.35804518,84.71,84.685,0.74794115]
[1771005901563,10.35804518,84.71,84.67,10.35804518]
[1771005901564,0.81857251,84.709,84.67,10.35804518]
[1771005901747,0.81857251,84.707,84.67,10.35804518]
[1771005901942,10.35804518,84.7,84.662,0.74794115]
[1771005902470,10.35804518,84.7,84.67,10.35804518]
[1771005902969,0.81857251,84.707,84.67,10.35804518]
[1771005903169,10.35804518,84.71,84.671,0.74794115]
[1771005903473,10.35804518,84.71,84.661,41.34134961]
[1771005903474,12.6224997,84.718,84.69,10.35804518]
[1771005903861,12.6224997,84.718,84.681,0.74794115]
[1771005903862,0.81857251,84.749,84.711,0.74794115]